[Event "46th GER-ch Rapid 2020"]
[Site "Plochingen"]
[Date "2020.09.19"]
[Round "1.8"]
[White "Braeuning, Rudolf Wilhelm"]
[Black "Frischmann, Rick"]
[Result "1-0"]
[ECO "B01"]
[WhiteElo "2268"]
[BlackElo "2347"]
[Annotator "ChessBase"]
[PlyCount "109"]
[EventDate "2020.09.19"]
[EventType "swiss"]
[EventCountry "GER"]
[SourceTitle "playchess.com"]
[Source "ChessBase"]
[SourceQuality "1"]
[TimeControl "900+10"]

1. e4 {[%emt 0:00:00]} d5 {[%emt 0:00:00]} 2. exd5 {[%emt 0:00:00]} Qxd5 {[%emt 0:00:00]} 3. Nc3 {[%emt 0:00:00]} Qd6 {[%emt 0:00:00]} 4. d4 {[%emt 0:00:00]} Nf6 {[%emt 0:00:00]} 5. Bg5 {[%emt 0:01:08]} Nc6 {[%emt 0:00:27]} 6. d5 {[%emt 0:03:29]} Nb4 {[%emt 0:00:50]} 7. Bxf6 {[%emt 0:00:59]} gxf6 {[%emt 0:00:06]} 8. a3 {[%emt 0:00:16]} Na6 {[%emt 0:00:27]} 9. Bb5+ {[%emt 0:00:14]} Bd7 {[%emt 0:00:25]} 10. Bxd7+ {[%emt 0:00:03]} Qxd7 {[%emt 0:00:06]} 11. Nge2 {[%emt 0:00:18]} Rg8 {[%emt 0:00:19]} 12. Ng3 {[%emt 0:01:09]} O-O-O {[%emt 0:05:52]} 13. Qd4 {[%emt 0:03:19]} Kb8 {[%emt 0:00:46]} 14. O-O-O {[%emt 0:00:32]} Rg4 {[%emt 0:00:12]} 15. Qe3 {[%emt 0:00:23]} h5 {[%emt 0:00:20]} 16. Nxh5 {[%emt 0:00:21]} Rxg2 {[%emt 0:04:43]} 17. Ng3 {[%emt 0:00:40]} Qh3 {[%emt 0:00:03]} 18. Nb5 {[%emt 0:02:35]} Bh6 {[%emt 0:00:19]} 19. f4 {[%emt 0:00:01]} b6 {[%emt 0:00:30]} 20. Qf3 {[%emt 0:00:24]} Rg8 {[%emt 0:01:14]} 21. Nd4 {[%emt 0:00:32]} Rxh2 {[%emt 0:00:41]} 22. Ndf5 {[%emt 0:01:22]} e6 {[%emt 0:00:45]} 23. dxe6 {[%emt 0:00:10]} fxe6 {[%emt 0:00:01]} 24. Rxh2 {[%emt 0:00:09]} Qxh2 {[%emt 0:00:01]} 25. Rh1 {[%emt 0:00:07]} Qxh1+ {[%emt 0:00:18]} 26. Qxh1 {[%emt 0:00:38]} Bxf4+ {[%emt 0:00:01]} 27. Kb1 {[%emt 0:00:01]} Bxg3 {[%emt 0:00:46]} 28. Ne7 {[%emt 0:00:25]} Re8 {[%emt 0:00:04]} 29. Nc6+ {[%emt 0:00:08]} Kc8 {[%emt 0:00:01]} 30. Nxa7+ {[%emt 0:00:02]} Kd7 {[%emt 0:00:11]} 31. Nb5 {[%emt 0:00:32]} Nc5 {[%emt 0:00:06]} 32. b4 {[%emt 0:00:08]} Na4 {[%emt 0:00:22]} 33. Ka2 {[%emt 0:00:06]} c6 {[%emt 0:00:08]} 34. Nd4 {[%emt 0:00:06]} Nc3+ {[%emt 0:00:19]} 35. Kb3 {[%emt 0:00:01]} Nd5 {[%emt 0:00:05]} 36. c4 {[%emt 0:00:01]} Ne7 {[%emt 0:00:02]} 37. Qe4 {[%emt 0:00:07]} Be5 {[%emt 0:00:02]} 38. Nf3 {[%emt 0:00:03]} Bd6 {[%emt 0:00:07]} 39. Nd4 {[%emt 0:00:10]} Be5 {[%emt 0:00:05]} 40. b5 {[%emt 0:00:05]} Rc8 {[%emt 0:00:13]} 41. a4 {[%emt 0:00:10]} Rc7 {[%emt 0:00:13]} 42. Nf3 {[%emt 0:00:26]} Bd6 {[%emt 0:00:01]} 43. Qd4 {[%emt 0:00:10]} cxb5 {[%emt 0:00:31]} 44. axb5 {[%emt 0:00:20]} Ra7 {[%emt 0:00:00]} 45. Qxb6 {[%emt 0:00:06]} Nc8 {[%emt 0:00:19]} 46. Qc6+ {[%emt 0:00:07]} Kd8 {[%emt 0:00:12]} 47. c5 {[%emt 0:00:06]} Rc7 {[%emt 0:00:07]} 48. Qe4 {[%emt 0:00:21]} Rxc5 {[%emt 0:00:01]} 49. Nd4 {[%emt 0:00:06]} Kd7 {[%emt 0:00:29]} 50. Qxe6+ {[%emt 0:00:03]} Kc7 51. Qxf6 {[%emt 0:00:09]} Kb6 {[%emt 0:00:10]} 52. Qe6 {[%emt 0:00:11]} Rc7 {[%emt 0:00:19]} 53. Qd5 {[%emt 0:00:23]} Bc5 {[%emt 0:00:18]} 54. Ne6 {[%emt 0:00:09]} Ne7 {[%emt 0:00:01]} 55. Qd8 {[%emt 0:00:04]} 1-0

[Event "46th GER-ch Rapid 2020"]
[Site "Plochingen"]
[Date "2020.09.19"]
[Round "1.9"]
[White "Spiess, Gunter"]
[Black "Neukirchner, Pascal"]
[Result "1/2-1/2"]
[ECO "A43"]
[WhiteElo "2391"]
[BlackElo "2259"]
[Annotator "ChessBase"]
[PlyCount "54"]
[EventDate "2020.09.19"]
[EventType "swiss"]
[EventCountry "GER"]
[SourceTitle "playchess.com"]
[Source "ChessBase"]
[SourceQuality "1"]
[TimeControl "900+10"]

1. d4 {[%emt 0:00:00]} Nf6 {[%emt 0:00:00]} 2. Nf3 {[%emt 0:00:00]} c5 {[%emt 0:00:00]} 3. d5 {[%emt 0:00:00]} b5 {[%emt 0:00:00]} 4. Bg5 {[%emt 0:00:00]} d6 {[%emt 0:00:00]} 5. a4 {[%emt 0:00:21]} b4 {[%emt 0:00:15]} 6. e3 {[%emt 0:01:01]} a6 {[%emt 0:00:53]} 7. Bc4 {[%emt 0:00:30]} g6 {[%emt 0:00:38]} 8. Nbd2 {[%emt 0:00:09]} Bg7 {[%emt 0:00:03]} 9. c3 {[%emt 0:00:37]} O-O {[%emt 0:03:03]} 10. O-O {[%emt 0:00:28]} Nbd7 {[%emt 0:00:38]} 11. a5 {[%emt 0:00:17]} Bb7 {[%emt 0:01:53]} 12. e4 {[%emt 0:00:41]} Ng4 {[%emt 0:01:14]} 13. Qc2 {[%emt 0:00:18]} Nge5 {[%emt 0:00:55]} 14. Be2 {[%emt 0:00:37]} Nxf3+ {[%emt 0:00:24]} 15. Nxf3 {[%emt 0:00:15]} f5 {[%emt 0:00:06]} 16. exf5 {[%emt 0:00:30]} Rxf5 {[%emt 0:00:09]} 17. c4 {[%emt 0:00:50]} Ne5 {[%emt 0:00:50]} 18. Bh4 {[%emt 0:00:03]} Bc8 {[%emt 0:01:51]} 19. Nxe5 {[%emt 0:01:24]} Bxe5 {[%emt 0:00:02]} 20. Bd3 {[%emt 0:01:00]} Rf7 {[%emt 0:00:51]} 21. Rfe1 {[%emt 0:01:09]} Qf8 {[%emt 0:00:15]} 22. Bg3 {[%emt 0:00:32]} Bd4 {[%emt 0:00:02]} 23. Re2 {[%emt 0:01:18]} Bg4 {[%emt 0:00:11]} 24. Re4 {[%emt 0:00:20]} Bf5 {[%emt 0:00:06]} 25. Re2 {[%emt 0:00:08]} Bg4 {[%emt 0:00:02]} 26. Re4 {[%emt 0:00:51]} Bf5 {[%emt 0:00:01]} 27. Re2 {[%emt 0:00:10]} Bg4 {[%emt 0:00:02]} 1/2-1/2

[Event "46th GER-ch Rapid 2020"]
[Site "Plochingen"]
[Date "2020.09.19"]
[Round "1.10"]
[White "Wendler, David"]
[Black "Petkidis, Anthony"]
[Result "1/2-1/2"]
[ECO "C77"]
[WhiteElo "2249"]
[BlackElo "2406"]
[Annotator "ChessBase"]
[PlyCount "91"]
[EventDate "2020.09.19"]
[EventType "swiss"]
[EventCountry "GER"]
[SourceTitle "playchess.com"]
[Source "ChessBase"]
[SourceQuality "1"]
[TimeControl "900+10"]

1. e4 {[%emt 0:00:00]} e5 {[%emt 0:00:00]} 2. Nf3 {[%emt 0:00:00]} Nc6 {[%emt 0:00:00]} 3. Bb5 {[%emt 0:00:00]} a6 {[%emt 0:00:02]} 4. Ba4 {[%emt 0:00:01]} Nf6 {[%emt 0:00:03]} 5. d3 {[%emt 0:00:15]} d6 {[%emt 0:00:13]} 6. c3 {[%emt 0:00:14]} Be7 {[%emt 0:00:04]} 7. Nbd2 {[%emt 0:00:18]} O-O {[%emt 0:00:08]} 8. O-O {[%emt 0:00:04]} Re8 {[%emt 0:00:24]} 9. Re1 {[%emt 0:00:03]} Bf8 {[%emt 0:00:12]} 10. Nf1 {[%emt 0:00:14]} b5 {[%emt 0:01:52]} 11. Bc2 {[%emt 0:00:37]} Bb7 {[%emt 0:00:07]} 12. Bg5 {[%emt 0:01:21]} h6 {[%emt 0:00:23]} 13. Bh4 {[%emt 0:00:14]} Nb8 {[%emt 0:02:15]} 14. Ne3 {[%emt 0:01:12]} Nbd7 {[%emt 0:00:05]} 15. Qd2 {[%emt 0:01:59]} c5 {[%emt 0:07:23]} 16. Nf5 {[%emt 0:04:10]} d5 {[%emt 0:00:20]} 17. a4 {[%emt 0:02:25]} Qc7 {[%emt 0:00:53]} 18. Bg3 {[%emt 0:00:41]} dxe4 {[%emt 0:00:17]} 19. dxe4 {[%emt 0:00:04]} Nh5 {[%emt 0:00:15]} 20. Qe2 {[%emt 0:00:54]} Nxg3 {[%emt 0:00:28]} 21. hxg3 {[%emt 0:00:01]} c4 {[%emt 0:00:10]} 22. g4 {[%emt 0:00:45]} g6 {[%emt 0:00:31]} 23. Ne3 {[%emt 0:00:38]} Nc5 {[%emt 0:00:22]} 24. Nd5 {[%emt 0:00:35]} Bxd5 {[%emt 0:00:14]} 25. exd5 {[%emt 0:00:02]} e4 {[%emt 0:00:32]} 26. Nd4 {[%emt 0:01:03]} Qd7 {[%emt 0:01:09]} 27. axb5 {[%emt 0:00:20]} axb5 {[%emt 0:00:02]} 28. Rxa8 {[%emt 0:00:07]} Rxa8 {[%emt 0:00:02]} 29. Bxe4 {[%emt 0:00:16]} Re8 {[%emt 0:00:08]} 30. Qf3 {[%emt 0:00:08]} Bg7 {[%emt 0:00:17]} 31. Kf1 {[%emt 0:00:20]} b4 {[%emt 0:00:08]} 32. cxb4 {[%emt 0:00:32]} Bxd4 {[%emt 0:00:57]} 33. bxc5 {[%emt 0:00:02]} Bxc5 {[%emt 0:00:01]} 34. Bc2 {[%emt 0:00:27]} Rxe1+ {[%emt 0:00:13]} 35. Kxe1 {[%emt 0:00:01]} Qe7+ {[%emt 0:00:02]} 36. Kf1 {[%emt 0:00:14]} Qe5 {[%emt 0:00:06]} 37. b3 {[%emt 0:00:27]} c3 {[%emt 0:00:16]} 38. Qe4 {[%emt 0:00:15]} Qf6 {[%emt 0:00:07]} 39. f4 {[%emt 0:00:15]} Qa6+ {[%emt 0:00:16]} 40. Qc4 {[%emt 0:00:10]} Qa1+ {[%emt 0:00:08]} 41. Ke2 {[%emt 0:00:02]} Qc1 {[%emt 0:00:04]} 42. Qxc3 {[%emt 0:00:05]} Bd6 {[%emt 0:00:11]} 43. Qc8+ {[%emt 0:00:03]} Kg7 {[%emt 0:00:04]} 44. Qc3+ {[%emt 0:00:02]} Kg8 {[%emt 0:00:02]} 45. Qc8+ {[%emt 0:00:06]} Kg7 {[%emt 0:00:01]} 46. Qc3+ {[%emt 0:00:05]} 1/2-1/2

[Event "46th GER-ch Rapid 2020"]
[Site "Plochingen"]
[Date "2020.09.19"]
[Round "2.1"]
[White "Schmaltz, Roland"]
[Black "Reichmann, Hendrik"]
[Result "1/2-1/2"]
[ECO "B06"]
[WhiteElo "2449"]
[BlackElo "2348"]
[Annotator "ChessBase"]
[PlyCount "112"]
[EventDate "2020.09.19"]
[EventType "swiss"]
[EventCountry "GER"]
[SourceTitle "playchess.com"]
[Source "ChessBase"]
[SourceQuality "1"]
[TimeControl "900+10"]

1. e4 {[%emt 0:00:00]} g6 {[%emt 0:00:00]} 2. d4 {[%emt 0:00:00]} Bg7 {[%emt 0:00:00]} 3. Nc3 {[%emt 0:00:00]} d6 {[%emt 0:00:10]} 4. Be3 {[%emt 0:00:00]} a6 {[%emt 0:00:02]} 5. Nf3 {[%emt 0:00:34]} b5 {[%emt 0:00:55]} 6. Bd3 {[%emt 0:00:12]} Nd7 {[%emt 0:00:40]} 7. Ne2 {[%emt 0:00:34]} Bb7 {[%emt 0:01:01]} 8. Ng3 {[%emt 0:00:10]} Ngf6 {[%emt 0:01:51]} 9. O-O {[%emt 0:00:12]} Ng4 {[%emt 0:01:08]} 10. Bg5 {[%emt 0:00:13]} h6 {[%emt 0:00:27]} 11. Bd2 {[%emt 0:00:09]} e5 {[%emt 0:01:30]} 12. c3 {[%emt 0:00:16]} O-O {[%emt 0:00:57]} 13. Re1 {[%emt 0:00:47]} c5 {[%emt 0:00:28]} 14. d5 {[%emt 0:00:20]} c4 {[%emt 0:00:45]} 15. Bc2 {[%emt 0:00:04]} Qb6 {[%emt 0:01:16]} 16. Qe2 {[%emt 0:00:11]} Nc5 {[%emt 0:00:38]} 17. h3 {[%emt 0:00:04]} Nf6 {[%emt 0:00:01]} 18. Be3 {[%emt 0:00:26]} Qc7 {[%emt 0:00:01]} 19. Qd2 {[%emt 0:01:20]} Kh7 {[%emt 0:00:11]} 20. Nh4 {[%emt 0:00:29]} Ng8 {[%emt 0:00:37]} 21. f4 {[%emt 0:01:15]} exf4 {[%emt 0:00:19]} 22. Bxf4 {[%emt 0:00:02]} Nd7 {[%emt 0:00:34]} 23. Nf3 {[%emt 0:00:23]} Ne5 {[%emt 0:00:22]} 24. Nxe5 {[%emt 0:00:16]} Bxe5 {[%emt 0:00:10]} 25. Bxe5 {[%emt 0:00:18]} dxe5 {[%emt 0:00:01]} 26. Rf1 {[%emt 0:00:08]} Qd6 {[%emt 0:00:21]} 27. Rf3 {[%emt 0:00:07]} Kg7 {[%emt 0:00:24]} 28. Raf1 {[%emt 0:00:06]} Rad8 {[%emt 0:00:19]} 29. Qf2 {[%emt 0:00:22]} f6 {[%emt 0:00:28]} 30. Kh1 {[%emt 0:02:18]} Rd7 {[%emt 0:00:12]} 31. Rd1 {[%emt 0:01:44]} Rc7 {[%emt 0:00:46]} 32. Nf1 {[%emt 0:00:09]} Bc8 {[%emt 0:00:43]} 33. Ne3 {[%emt 0:00:06]} Rcf7 {[%emt 0:00:37]} 34. g4 {[%emt 0:00:07]} Bd7 {[%emt 0:00:22]} 35. Rg1 {[%emt 0:00:06]} Ne7 {[%emt 0:00:24]} 36. Rf1 {[%emt 0:00:48]} g5 {[%emt 0:00:49]} 37. Nf5+ {[%emt 0:01:45]} Bxf5 {[%emt 0:00:09]} 38. gxf5 {[%emt 0:00:01]} h5 {[%emt 0:00:19]} 39. Rg3 {[%emt 0:00:04]} Rh8 {[%emt 0:00:11]} 40. Rfg1 {[%emt 0:00:10]} Kf8 {[%emt 0:00:10]} 41. Kh2 {[%emt 0:00:08]} Nc8 {[%emt 0:00:03]} 42. Bd1 {[%emt 0:00:11]} Qb6 {[%emt 0:00:21]} 43. Qe1 {[%emt 0:00:33]} Nd6 {[%emt 0:00:01]} 44. Bf3 {[%emt 0:00:04]} Qc5 {[%emt 0:00:09]} 45. Kh1 {[%emt 0:00:22]} a5 {[%emt 0:00:08]} 46. a3 {[%emt 0:00:04]} Rb7 {[%emt 0:00:06]} 47. Qe2 {[%emt 0:01:58]} b4 {[%emt 0:00:35]} 48. axb4 {[%emt 0:00:24]} axb4 {[%emt 0:00:01]} 49. Ra1 {[%emt 0:00:29]} bxc3 {[%emt 0:00:26]} 50. bxc3 {[%emt 0:00:01]} Ra7 {[%emt 0:00:13]} 51. Rb1 {[%emt 0:00:06]} Ke7 {[%emt 0:00:07]} 52. Bxh5 {[%emt 0:00:23]} Nxe4 {[%emt 0:00:15]} 53. Qxe4 {[%emt 0:00:04]} Rxh5 {[%emt 0:00:01]} 54. Rd1 {[%emt 0:01:29]} Kd6 {[%emt 0:00:18]} 55. Qf3 {[%emt 0:00:05]} Rh4 {[%emt 0:00:10]} 56. Rg4 {[%emt 0:00:01]} Rxg4 {[%emt 0:00:13]} 1/2-1/2

[Event "46th GER-ch Rapid 2020"]
[Site "Plochingen"]
[Date "2020.09.19"]
[Round "2.3"]
[White "Rosner, Jonas"]
[Black "Hirneise, Jens"]
[Result "1-0"]
[ECO "A49"]
[WhiteElo "2433"]
[BlackElo "2289"]
[Annotator "ChessBase"]
[PlyCount "76"]
[EventDate "2020.09.19"]
[EventType "swiss"]
[EventCountry "GER"]
[SourceTitle "playchess.com"]
[Source "ChessBase"]
[SourceQuality "1"]
[TimeControl "900+10"]

1. d4 {[%emt 0:00:00]} Nf6 {[%emt 0:00:00]} 2. Nf3 {[%emt 0:00:00]} g6 {[%emt 0:00:13]} 3. g3 {[%emt 0:00:00]} Bg7 {[%emt 0:00:01]} 4. Bg2 {[%emt 0:00:00]} O-O {[%emt 0:00:04]} 5. O-O {[%emt 0:00:02]} d6 {[%emt 0:00:03]} 6. b3 {[%emt 0:00:01]} e5 {[%emt 0:00:06]} 7. dxe5 {[%emt 0:00:05]} dxe5 {[%emt 0:00:01]} 8. Ba3 {[%emt 0:00:47]} Qxd1 {[%emt 0:00:05]} 9. Rxd1 {[%emt 0:00:01]} Re8 {[%emt 0:00:01]} 10. c4 {[%emt 0:00:17]} e4 {[%emt 0:00:22]} 11. Nd4 {[%emt 0:00:06]} c6 {[%emt 0:01:37]} 12. Nc3 {[%emt 0:00:27]} h5 {[%emt 0:00:37]} 13. h3 {[%emt 0:00:59]} Nbd7 {[%emt 0:00:13]} 14. Rac1 {[%emt 0:01:17]} Nf8 {[%emt 0:00:37]} 15. Kh2 {[%emt 0:01:14]} Ne6 {[%emt 0:02:02]} 16. e3 {[%emt 0:02:24]} Ng5 {[%emt 0:02:22]} 17. Rd2 {[%emt 0:00:45]} Bd7 {[%emt 0:03:28]} 18. Rcd1 {[%emt 0:01:01]} Ne6 {[%emt 0:02:14]} 19. Nxe6 {[%emt 0:01:12]} Bxe6 {[%emt 0:00:29]} 20. Nxe4 {[%emt 0:00:55]} Nxe4 {[%emt 0:00:06]} 21. Bxe4 {[%emt 0:00:02]} Bxc4 {[%emt 0:01:07]} 22. Bxg6 {[%emt 0:01:48]} Bxb3 {[%emt 0:00:31]} 23. axb3 {[%emt 0:00:01]} fxg6 {[%emt 0:00:01]} 24. Rd7 {[%emt 0:00:06]} Bf8 {[%emt 0:01:09]} 25. Bxf8 {[%emt 0:01:19]} Rxf8 {[%emt 0:00:03]} 26. Kg2 {[%emt 0:00:03]} Rf7 {[%emt 0:01:32]} 27. Rxf7 {[%emt 0:00:12]} Kxf7 {[%emt 0:00:01]} 28. Rd7+ {[%emt 0:00:02]} Ke6 {[%emt 0:00:19]} 29. Rxb7 {[%emt 0:00:03]} a5 {[%emt 0:00:05]} 30. Rg7 {[%emt 0:01:00]} Kf6 {[%emt 0:00:04]} 31. Rc7 {[%emt 0:00:12]} Ra6 {[%emt 0:00:01]} 32. f4 {[%emt 0:00:23]} Rb6 33. Kf3 {[%emt 0:00:00]} Rxb3 {[%emt 0:00:20]} 34. Rxc6+ {[%emt 0:00:00]} Kf7 {[%emt 0:00:03]} 35. Ra6 {[%emt 0:00:03]} Ra3 {[%emt 0:00:03]} 36. g4 {[%emt 0:00:03]} hxg4+ {[%emt 0:00:04]} 37. hxg4 {[%emt 0:00:01]} a4 {[%emt 0:00:09]} 38. g5 {[%emt 0:00:08]} Ra1 {[%emt 0:00:05]} 1-0

[Event "46th GER-ch Rapid 2020"]
[Site "Plochingen"]
[Date "2020.09.19"]
[Round "2.4"]
[White "Kvetny, Mark"]
[Black "Nguyen, Alex Dac-Vuong"]
[Result "1/2-1/2"]
[ECO "D02"]
[WhiteElo "2427"]
[BlackElo "2343"]
[Annotator "ChessBase"]
[PlyCount "91"]
[EventDate "2020.09.19"]
[EventType "swiss"]
[EventCountry "GER"]
[SourceTitle "playchess.com"]
[Source "ChessBase"]
[SourceQuality "1"]
[TimeControl "900+10"]

1. d4 {[%emt 0:00:00]} Nf6 {[%emt 0:00:00]} 2. Nf3 {[%emt 0:00:00]} e6 {[%emt 0:00:00]} 3. Bf4 {[%emt 0:00:02]} c5 {[%emt 0:00:00]} 4. e3 {[%emt 0:00:03]} d5 {[%emt 0:00:36]} 5. Nbd2 {[%emt 0:00:06]} Nc6 {[%emt 0:00:02]} 6. c3 {[%emt 0:00:02]} Bd6 {[%emt 0:00:02]} 7. Bg3 {[%emt 0:00:02]} O-O {[%emt 0:00:04]} 8. Bb5 {[%emt 0:00:04]} Ne7 {[%emt 0:00:48]} 9. Bd3 {[%emt 0:00:06]} Nf5 {[%emt 0:00:03]} 10. Bxf5 {[%emt 0:02:15]} exf5 {[%emt 0:00:02]} 11. Bxd6 {[%emt 0:00:38]} Qxd6 {[%emt 0:00:02]} 12. dxc5 {[%emt 0:00:02]} Qxc5 {[%emt 0:00:01]} 13. O-O {[%emt 0:00:04]} Be6 {[%emt 0:00:21]} 14. Nb3 {[%emt 0:00:03]} Qc7 {[%emt 0:00:59]} 15. Qd4 {[%emt 0:00:14]} Rfd8 {[%emt 0:00:04]} 16. Rfd1 {[%emt 0:00:13]} Ne4 {[%emt 0:00:14]} 17. a4 {[%emt 0:01:09]} Nd6 {[%emt 0:02:48]} 18. Qf4 {[%emt 0:00:42]} Qb6 {[%emt 0:00:17]} 19. Qb4 {[%emt 0:00:25]} Qxb4 {[%emt 0:01:07]} 20. cxb4 {[%emt 0:00:02]} Nc4 {[%emt 0:00:01]} 21. Rab1 {[%emt 0:00:37]} f4 {[%emt 0:00:13]} 22. Nbd4 {[%emt 0:01:27]} fxe3 {[%emt 0:00:08]} 23. fxe3 {[%emt 0:00:02]} Bg4 {[%emt 0:01:33]} 24. Re1 {[%emt 0:02:14]} Re8 {[%emt 0:00:21]} 25. Kf2 {[%emt 0:00:02]} Re7 {[%emt 0:00:23]} 26. b3 {[%emt 0:00:40]} Nd6 {[%emt 0:00:10]} 27. Rbc1 {[%emt 0:00:15]} Rae8 {[%emt 0:00:11]} 28. b5 {[%emt 0:00:11]} g6 {[%emt 0:01:51]} 29. h3 {[%emt 0:00:58]} Bxf3 {[%emt 0:01:28]} 30. gxf3 {[%emt 0:00:17]} Kg7 {[%emt 0:02:13]} 31. Rc5 {[%emt 0:00:36]} Re5 {[%emt 0:00:03]} 32. Rc7 {[%emt 0:00:02]} R8e7 {[%emt 0:00:21]} 33. Rxe7 {[%emt 0:00:26]} Rxe7 {[%emt 0:00:02]} 34. Rc1 {[%emt 0:00:02]} Kf6 {[%emt 0:00:13]} 35. Rc5 {[%emt 0:00:55]} Re5 {[%emt 0:00:22]} 36. Rc7 {[%emt 0:00:18]} Re7 {[%emt 0:00:03]} 37. Rc5 {[%emt 0:00:04]} Re5 {[%emt 0:00:00]} 38. a5 {[%emt 0:00:28]} Nf5 {[%emt 0:01:07]} 39. Nxf5 {[%emt 0:02:26]} gxf5 {[%emt 0:00:04]} 40. f4 {[%emt 0:01:50]} Re4 {[%emt 0:01:33]} 41. Rc7 {[%emt 0:00:34]} Re7 {[%emt 0:00:02]} 42. Rxe7 {[%emt 0:00:50]} Kxe7 {[%emt 0:00:01]} 43. Ke2 {[%emt 0:00:01]} Kd6 {[%emt 0:00:09]} 44. b4 {[%emt 0:00:01]} b6 {[%emt 0:00:05]} 45. axb6 {[%emt 0:00:40]} axb6 {[%emt 0:00:02]} 46. Kd3 {[%emt 0:00:01]} 1/2-1/2

[Event "46th GER-ch Rapid 2020"]
[Site "Plochingen"]
[Date "2020.09.19"]
[Round "2.5"]
[White "Richter, Nils"]
[Black "Kopylov, Michael"]
[Result "1-0"]
[ECO "A13"]
[WhiteElo "2307"]
[BlackElo "2408"]
[Annotator "ChessBase"]
[PlyCount "67"]
[EventDate "2020.09.19"]
[EventType "swiss"]
[EventCountry "GER"]
[SourceTitle "playchess.com"]
[Source "ChessBase"]
[SourceQuality "1"]
[TimeControl "900+10"]

1. c4 {[%emt 0:00:00]} e6 {[%emt 0:00:17]} 2. Nc3 {[%emt 0:00:00]} d5 {[%emt 0:00:02]} 3. e3 {[%emt 0:00:00]} Nf6 {[%emt 0:00:09]} 4. Nf3 {[%emt 0:00:01]} Be7 {[%emt 0:00:12]} 5. b3 {[%emt 0:00:03]} O-O {[%emt 0:00:47]} 6. Bb2 {[%emt 0:00:02]} c5 {[%emt 0:00:21]} 7. cxd5 {[%emt 0:00:02]} Nxd5 {[%emt 0:00:39]} 8. Nxd5 {[%emt 0:00:02]} Qxd5 {[%emt 0:00:03]} 9. Bc4 {[%emt 0:00:28]} Qh5 {[%emt 0:00:46]} 10. O-O {[%emt 0:00:14]} Nc6 {[%emt 0:00:04]} 11. Be2 {[%emt 0:01:47]} Qf5 {[%emt 0:00:26]} 12. d4 {[%emt 0:03:12]} Bf6 {[%emt 0:01:24]} 13. Bd3 {[%emt 0:00:42]} Qh5 {[%emt 0:00:18]} 14. Ne5 {[%emt 0:00:45]} Qxd1 {[%emt 0:00:17]} 15. Rfxd1 {[%emt 0:00:02]} cxd4 {[%emt 0:05:10]} 16. Nxc6 {[%emt 0:01:30]} bxc6 {[%emt 0:00:14]} 17. Bxd4 {[%emt 0:00:02]} Bxd4 {[%emt 0:00:18]} 18. exd4 {[%emt 0:00:01]} Rd8 {[%emt 0:00:01]} 19. Be4 {[%emt 0:01:07]} Bb7 {[%emt 0:00:10]} 20. f4 {[%emt 0:02:41]} Rd6 {[%emt 0:01:25]} 21. Kf2 {[%emt 0:00:15]} Rad8 {[%emt 0:00:11]} 22. Ke3 {[%emt 0:00:01]} f6 {[%emt 0:00:23]} 23. Rd3 {[%emt 0:00:45]} Ba6 {[%emt 0:00:25]} 24. Rd2 {[%emt 0:00:04]} e5 {[%emt 0:00:15]} 25. fxe5 {[%emt 0:00:20]} fxe5 {[%emt 0:00:00]} 26. Rad1 {[%emt 0:00:05]} exd4+ {[%emt 0:01:36]} 27. Rxd4 {[%emt 0:00:01]} Rxd4 {[%emt 0:00:02]} 28. Rxd4 {[%emt 0:00:02]} Re8 {[%emt 0:00:01]} 29. Kf2 {[%emt 0:01:19]} c5 {[%emt 0:00:47]} 30. Ra4 {[%emt 0:00:38]} Kf8 {[%emt 0:01:42]} 31. Rxa6 {[%emt 0:01:30]} Rxe4 {[%emt 0:00:02]} 32. Rxa7 {[%emt 0:00:01]} c4 {[%emt 0:00:10]} 33. Ra4 {[%emt 0:00:28]} Rd4 {[%emt 0:01:03]} 34. Ke3 {[%emt 0:00:29]} 1-0

[Event "46th GER-ch Rapid 2020"]
[Site "Plochingen"]
[Date "2020.09.19"]
[Round "2.6"]
[White "Muranyi, Karl-Jasmin"]
[Black "Vatter, Hans-Joachim"]
[Result "1/2-1/2"]
[ECO "A22"]
[WhiteElo "2331"]
[BlackElo "2221"]
[Annotator "ChessBase"]
[PlyCount "38"]
[EventDate "2020.09.19"]
[EventType "swiss"]
[EventCountry "GER"]
[SourceTitle "playchess.com"]
[Source "ChessBase"]
[SourceQuality "1"]
[TimeControl "900+10"]

1. c4 {[%emt 0:00:00]} e5 {[%emt 0:00:00]} 2. Nc3 {[%emt 0:00:00]} Bb4 {[%emt 0:00:05]} 3. g3 {[%emt 0:00:00]} Bxc3 {[%emt 0:00:07]} 4. dxc3 {[%emt 0:00:00]} d6 {[%emt 0:00:02]} 5. Bg2 {[%emt 0:00:03]} Nf6 {[%emt 0:00:07]} 6. Nf3 {[%emt 0:00:02]} Qe7 {[%emt 0:00:02]} 7. O-O {[%emt 0:00:18]} O-O {[%emt 0:00:06]} 8. Ne1 {[%emt 0:00:02]} Nbd7 {[%emt 0:00:31]} 9. Nc2 {[%emt 0:00:22]} e4 {[%emt 0:00:58]} 10. Bg5 {[%emt 0:00:20]} h6 {[%emt 0:00:07]} 11. Bxf6 {[%emt 0:00:01]} Nxf6 {[%emt 0:00:05]} 12. Ne3 {[%emt 0:00:08]} Re8 {[%emt 0:00:43]} 13. h3 {[%emt 0:02:30]} a6 {[%emt 0:00:17]} 14. a4 {[%emt 0:00:10]} a5 {[%emt 0:00:02]} 15. Qd4 {[%emt 0:01:07]} Bd7 {[%emt 0:00:40]} 16. b3 {[%emt 0:00:18]} Qe5 {[%emt 0:00:52]} 17. Qxe5 {[%emt 0:00:37]} Rxe5 {[%emt 0:00:02]} 18. Rfd1 {[%emt 0:00:02]} g6 {[%emt 0:00:46]} 19. Rd4 {[%emt 0:00:52]} Ra6 {[%emt 0:01:37]} 1/2-1/2

[Event "46th GER-ch Rapid 2020"]
[Site "Plochingen"]
[Date "2020.09.19"]
[Round "2.7"]
[White "Richter, Christian"]
[Black "Braeuning, Rudolf Wilhelm"]
[Result "1-0"]
[ECO "A46"]
[WhiteElo "2348"]
[BlackElo "2268"]
[Annotator "ChessBase"]
[PlyCount "69"]
[EventDate "2020.09.19"]
[EventType "swiss"]
[EventCountry "GER"]
[SourceTitle "playchess.com"]
[Source "ChessBase"]
[SourceQuality "1"]
[TimeControl "900+10"]

1. d4 {[%emt 0:00:00]} Nf6 {[%emt 0:00:00]} 2. Nf3 {[%emt 0:00:00]} b5 {[%emt 0:00:06]} 3. e4 {[%emt 0:01:37]} Nxe4 {[%emt 0:00:03]} 4. Bxb5 {[%emt 0:00:01]} e6 {[%emt 0:00:11]} 5. O-O {[%emt 0:00:32]} Bb7 {[%emt 0:00:10]} 6. c4 {[%emt 0:01:17]} Be7 {[%emt 0:00:10]} 7. Ba4 {[%emt 0:00:41]} O-O {[%emt 0:00:08]} 8. Bc2 {[%emt 0:00:22]} d5 {[%emt 0:00:33]} 9. cxd5 {[%emt 0:02:08]} exd5 {[%emt 0:00:40]} 10. Nbd2 {[%emt 0:00:44]} Nd7 {[%emt 0:01:45]} 11. Re1 {[%emt 0:02:14]} f5 {[%emt 0:00:11]} 12. Nb3 {[%emt 0:00:20]} Bd6 {[%emt 0:00:56]} 13. Na5 {[%emt 0:01:08]} Rb8 {[%emt 0:00:56]} 14. Nxb7 {[%emt 0:00:54]} Rxb7 {[%emt 0:00:02]} 15. Bb3 {[%emt 0:02:04]} c6 {[%emt 0:00:07]} 16. Bd2 {[%emt 0:00:15]} Qb8 {[%emt 0:02:54]} 17. Re2 {[%emt 0:01:15]} Ndf6 {[%emt 0:04:39]} 18. Rc1 {[%emt 0:00:06]} Qe8 {[%emt 0:01:35]} 19. Ba5 {[%emt 0:01:13]} Rb5 {[%emt 0:00:20]} 20. Be1 {[%emt 0:00:04]} Qh5 {[%emt 0:00:15]} 21. Rxc6 {[%emt 0:00:21]} g5 {[%emt 0:01:07]} 22. Ne5 {[%emt 0:00:10]} Ng4 {[%emt 0:01:02]} 23. h3 {[%emt 0:00:14]} Bxe5 {[%emt 0:00:33]} 24. dxe5 {[%emt 0:00:18]} Nxe5 {[%emt 0:00:06]} 25. Bxd5+ {[%emt 0:00:36]} Kh8 {[%emt 0:00:10]} 26. Qd4 {[%emt 0:00:06]} Rxd5 {[%emt 0:00:18]} 27. Qxd5 {[%emt 0:00:01]} Nxc6 {[%emt 0:00:05]} 28. Rxe4 {[%emt 0:00:05]} h6 {[%emt 0:00:23]} 29. Bc3+ {[%emt 0:00:06]} Kh7 {[%emt 0:00:01]} 30. Re6 {[%emt 0:00:07]} Rd8 {[%emt 0:00:11]} 31. Qxc6 {[%emt 0:00:10]} Qd1+ {[%emt 0:00:20]} 32. Kh2 {[%emt 0:00:11]} g4 {[%emt 0:00:05]} 33. Re7+ {[%emt 0:00:09]} Kg8 {[%emt 0:00:03]} 34. Qe6+ {[%emt 0:00:03]} Kf8 {[%emt 0:00:03]} 35. Bg7# {[%emt 0:00:04]} 1-0